[Event "AUT-ch Open 2020"]
[Site "Graz"]
[Date "2020.02.16"]
[Round "3.17"]
[White "Konyves, Almos"]
[Black "Welling, Gerard"]
[Result "0-1"]
[ECO "A42"]
[WhiteElo "2031"]
[BlackElo "2286"]
[Annotator "ChessBase"]
[PlyCount "60"]
[EventDate "2020.02.14"]
[EventType "swiss"]
[EventCountry "AUT"]
[SourceTitle "playchess.com"]
[Source "ChessBase"]
[SourceQuality "1"]
[TimeControl "40/5400+30:1800+30"]

1. e4 {[%emt 0:00:00]} g6 {[%emt 0:00:00]} 2. d4 {[%emt 0:00:00]} Bg7 {[%emt 0:00:00]} 3. c4 {[%emt 0:00:00]} d6 {[%emt 0:00:39]} 4. Nc3 {[%emt 0:00:16]} e5 {[%emt 0:00:06]} 5. Nf3 {[%emt 0:00:27]} Bg4 {[%emt 0:02:35]} 6. dxe5 {[%emt 0:00:50]} dxe5 {[%emt 0:01:59]} 7. Qxd8+ {[%emt 0:03:24]} Kxd8 {[%emt 0:00:03]} 8. Ng5 {[%emt 0:03:04]} Nh6 {[%emt 0:01:43]} 9. h3 {[%emt 0:02:11]} Bd7 {[%emt 0:00:58]} 10. Be3 {[%emt 0:01:35]} f6 {[%emt 0:01:22]} 11. Nf3 {[%emt 0:00:07]} Be6 {[%emt 0:01:54]} 12. O-O-O+ {[%emt 0:03:38]} Nd7 {[%emt 0:00:05]} 13. Nd5 {[%emt 0:02:43]} Nf7 {[%emt 0:00:23]} 14. Be2 {[%emt 0:07:45]} c6 {[%emt 0:01:56]} 15. Nc3 {[%emt 0:09:20]} Bh6 {[%emt 0:07:38]} 16. Bxh6 {[%emt 0:00:52]} Nxh6 {[%emt 0:00:04]} 17. a3 {[%emt 0:08:19]} Kc7 {[%emt 0:01:26]} 18. b3 {[%emt 0:08:48]} Rhd8 {[%emt 0:01:39]} 19. Kb2 {[%emt 0:01:08]} Bg8 {[%emt 0:01:36]} 20. g3 {[%emt 0:03:27]} Nc5 {[%emt 0:01:58]} 21. b4 {[%emt 0:06:06]} Ne6 {[%emt 0:00:10]} 22. Bd3 {[%emt 0:02:59]} a5 {[%emt 0:05:49]} 23. Ne2 {[%emt 0:08:21]} Nf7 {[%emt 0:02:36]} 24. h4 {[%emt 0:01:49]} h5 {[%emt 0:00:57]} 25. Bc2 {[%emt 0:09:43]} Nd6 {[%emt 0:01:36]} 26. Nd2 {[%emt 0:02:02]} Rd7 {[%emt 0:10:51]} 27. c5 {[%emt 0:04:33]} Nb5 {[%emt 0:00:15]} 28. Nb3 {[%emt 0:00:16]} Rxd1 {[%emt 0:01:18]} 29. Rxd1 {[%emt 0:02:39]} axb4 {[%emt 0:00:10]} 30. axb4 {[%emt 0:00:17]} Ra4 {[%emt 0:00:32]} 0-1

[Event "AUT-ch Open 2020"]
[Site "Graz"]
[Date "2020.02.16"]
[Round "3.19"]
[White "Novikov, Stanislav"]
[Black "Zadruzny, Nicolaj"]
[Result "1-0"]
[ECO "D58"]
[WhiteElo "2531"]
[BlackElo "2531"]
[Annotator "ChessBase"]
[PlyCount "77"]
[EventDate "2020.02.14"]
[EventType "swiss"]
[EventCountry "AUT"]
[SourceTitle "playchess.com"]
[Source "ChessBase"]
[SourceQuality "1"]
[TimeControl "40/5400+30:1800+30"]

1. c4 {[%emt 0:04:18]} Nf6 {[%emt 0:00:00]} 2. Nc3 {[%emt 0:02:30]} e6 {[%emt 0:00:05]} 3. Nf3 {[%emt 0:05:59]} d5 {[%emt 0:00:07]} 4. d4 {[%emt 0:00:34]} Be7 {[%emt 0:00:07]} 5. Bg5 {[%emt 0:00:26]} h6 {[%emt 0:00:36]} 6. Bh4 {[%emt 0:00:57]} O-O {[%emt 0:04:01]} 7. e3 {[%emt 0:01:29]} b6 {[%emt 0:00:08]} 8. Qc2 {[%emt 0:05:08]} Bb7 {[%emt 0:02:30]} 9. Bxf6 {[%emt 0:14:40]} Bxf6 {[%emt 0:00:06]} 10. cxd5 {[%emt 0:00:03]} exd5 {[%emt 0:00:31]} 11. O-O-O {[%emt 0:00:06]} c5 {[%emt 0:02:18]} 12. dxc5 {[%emt 0:05:36]} bxc5 {[%emt 0:28:43]} 13. Nxd5 {[%emt 0:12:30]} Bxd5 {[%emt 0:00:06]} 14. Bc4 {[%emt 0:00:11]} Nd7 {[%emt 0:02:00]} 15. Rxd5 {[%emt 0:09:10]} Qc7 {[%emt 0:03:08]} 16. Nd2 {[%emt 0:23:45]} Rab8 {[%emt 0:13:18]} 17. b3 {[%emt 0:00:18]} a5 {[%emt 0:14:49]} 18. Kd1 {[%emt 0:03:43]} Be7 {[%emt 0:08:46]} 19. Ke2 {[%emt 0:00:43]} Nb6 {[%emt 0:06:01]} 20. Rd3 {[%emt 0:00:25]} Rbd8 {[%emt 0:01:35]} 21. Rxd8 {[%emt 0:01:47]} Rxd8 {[%emt 0:00:15]} 22. Nf3 {[%emt 0:00:18]} a4 {[%emt 0:02:41]} 23. Rd1 {[%emt 0:02:38]} Ra8 {[%emt 0:00:23]} 24. Qe4 {[%emt 0:03:42]} Bf6 {[%emt 0:00:22]} 25. h4 {[%emt 0:00:27]} Rb8 {[%emt 0:01:33]} 26. Rd2 {[%emt 0:01:00]} Nxc4 {[%emt 0:00:58]} 27. bxc4 {[%emt 0:00:22]} a3 {[%emt 0:00:18]} 28. g4 {[%emt 0:00:27]} g6 {[%emt 0:05:16]} 29. Kf1 {[%emt 0:00:17]} Bc3 {[%emt 0:01:07]} 30. Rd3 {[%emt 0:00:19]} Bg7 {[%emt 0:00:25]} 31. Rxa3 {[%emt 0:00:21]} Kh7 {[%emt 0:01:57]} 32. h5 {[%emt 0:00:23]} Rb6 {[%emt 0:00:37]} 33. Ra8 {[%emt 0:00:28]} Qd7 {[%emt 0:00:23]} 34. Kg2 {[%emt 0:01:08]} Re6 {[%emt 0:00:10]} 35. hxg6+ {[%emt 0:00:11]} fxg6 {[%emt 0:00:14]} 36. Qd5 {[%emt 0:00:23]} Qe7 {[%emt 0:01:34]} 37. Rd8 {[%emt 0:00:42]} Qf7 {[%emt 0:00:45]} 38. a4 {[%emt 0:00:43]} Bf8 {[%emt 0:00:32]} 39. Rxf8 {[%emt 0:00:08]} 1-0

[Event "AUT-ch Open 2020"]
[Site "Graz"]
[Date "2020.02.16"]
[Round "3.19"]
[White "Eizaguerri Floris, Maria"]
[Black "Peycheva, Gergana"]
[Result "1/2-1/2"]
[ECO "C01"]
[WhiteElo "2014"]
[BlackElo "2286"]
[Annotator "ChessBase"]
[PlyCount "97"]
[EventDate "2020.02.14"]
[EventType "swiss"]
[EventCountry "AUT"]
[SourceTitle "playchess.com"]
[Source "ChessBase"]
[SourceQuality "1"]
[TimeControl "40/5400+30:1800+30"]

1. e4 {[%emt 0:00:00]} e6 {[%emt 0:00:00]} 2. d4 {[%emt 0:00:03]} d5 {[%emt 0:00:14]} 3. Bd3 {[%emt 0:00:25]} dxe4 {[%emt 0:00:44]} 4. Bxe4 {[%emt 0:00:06]} Nf6 {[%emt 0:00:30]} 5. Bf3 {[%emt 0:00:06]} c5 {[%emt 0:00:46]} 6. Ne2 {[%emt 0:00:25]} Nc6 {[%emt 0:01:04]} 7. Be3 {[%emt 0:00:09]} cxd4 {[%emt 0:01:43]} 8. Nxd4 {[%emt 0:00:11]} Ne5 {[%emt 0:00:04]} 9. Nc3 {[%emt 0:00:37]} a6 {[%emt 0:02:14]} 10. O-O {[%emt 0:05:01]} Be7 {[%emt 0:02:01]} 11. Qe2 {[%emt 0:02:55]} O-O {[%emt 0:03:22]} 12. Rfd1 {[%emt 0:10:46]} Qc7 {[%emt 0:02:44]} 13. Nb3 {[%emt 0:15:39]} Bd7 {[%emt 0:08:47]} 14. a4 {[%emt 0:07:41]} Nxf3+ {[%emt 0:07:09]} 15. Qxf3 {[%emt 0:00:08]} Bc6 {[%emt 0:00:04]} 16. Qf4 {[%emt 0:09:20]} Qxf4 {[%emt 0:08:23]} 17. Bxf4 {[%emt 0:00:06]} Rfd8 {[%emt 0:01:09]} 18. Na5 {[%emt 0:07:37]} Bd5 {[%emt 0:04:53]} 19. Nxd5 {[%emt 0:03:39]} Nxd5 {[%emt 0:00:06]} 20. Bg3 {[%emt 0:02:21]} b6 {[%emt 0:10:16]} 21. Nc6 {[%emt 0:01:45]} Rdc8 {[%emt 0:00:22]} 22. Rxd5 {[%emt 0:05:30]} Rxc6 {[%emt 0:00:22]} 23. Rd7 {[%emt 0:00:17]} Kf8 {[%emt 0:01:44]} 24. c3 {[%emt 0:02:21]} Ke8 {[%emt 0:02:38]} 25. Rc7 {[%emt 0:06:38]} Rc8 {[%emt 0:08:14]} 26. Rxc6 {[%emt 0:00:49]} Rxc6 {[%emt 0:00:05]} 27. Kf1 {[%emt 0:00:12]} f6 {[%emt 0:02:18]} 28. Ke2 {[%emt 0:02:16]} e5 {[%emt 0:00:33]} 29. f3 {[%emt 0:00:51]} Kd7 {[%emt 0:02:08]} 30. Rd1+ {[%emt 0:02:08]} Ke6 {[%emt 0:03:18]} 31. Bf2 {[%emt 0:02:27]} f5 {[%emt 0:01:43]} 32. Be3 {[%emt 0:03:02]} g6 {[%emt 0:02:54]} 33. Bd2 {[%emt 0:05:00]} Bd6 {[%emt 0:03:55]} 34. h3 {[%emt 0:01:10]} Rc4 {[%emt 0:01:26]} 35. b3 {[%emt 0:00:31]} Rc6 {[%emt 0:03:02]} 36. Kd3 {[%emt 0:00:57]} Be7 {[%emt 0:02:04]} 37. Re1 {[%emt 0:00:51]} Bf6 {[%emt 0:01:38]} 38. Rc1 {[%emt 0:01:14]} Kd5 {[%emt 0:05:43]} 39. c4+ {[%emt 0:00:58]} Ke6 {[%emt 0:00:03]} 40. Be3 {[%emt 0:01:23]} Be7 {[%emt 0:01:38]} 41. Ke2 {[%emt 0:30:47]} Bc5 {[%emt 0:31:34]} 42. Rd1 {[%emt 0:00:00]} Rd6 {[%emt 0:00:00]} 43. Rxd6+ {[%emt 0:00:00]} Kxd6 {[%emt 0:00:00]} 44. Bd2 {[%emt 0:00:00]} a5 {[%emt 0:00:00]} 45. Kd3 {[%emt 0:00:00]} Ke6 {[%emt 0:00:00]} 46. Bg5 {[%emt 0:00:00]} Kd6 {[%emt 0:00:00]} 47. Bc1 {[%emt 0:00:00]} Kc6 {[%emt 0:00:00]} 48. Bb2 {[%emt 0:00:00]} Kd6 {[%emt 0:00:00]} 49. Bc1 {[%emt 0:00:00]} 1/2-1/2

[Event "AUT-ch Open 2020"]
[Site "Graz"]
[Date "2020.02.16"]
[Round "3.20"]
[White "Santiago, Yago De Moura"]
[Black "Sandhoefner, Florian"]
[Result "1-0"]
[ECO "D11"]
[WhiteElo "2488"]
[BlackElo "2328"]
[Annotator "ChessBase"]
[PlyCount "109"]
[EventDate "2020.02.14"]
[EventType "swiss"]
[EventCountry "AUT"]
[SourceTitle "playchess.com"]
[Source "ChessBase"]
[SourceQuality "1"]
[TimeControl "40/5400+30:1800+30"]

1. d4 {[%emt 0:00:00]} d5 {[%emt 0:00:00]} 2. c4 {[%emt 0:00:00]} c6 {[%emt 0:00:00]} 3. Nf3 {[%emt 0:00:28]} Nf6 {[%emt 0:00:00]} 4. e3 {[%emt 0:00:09]} e6 {[%emt 0:00:00]} 5. Bd3 {[%emt 0:05:17]} dxc4 {[%emt 0:00:00]} 6. Bxc4 {[%emt 0:00:07]} Nbd7 {[%emt 0:00:00]} 7. O-O {[%emt 0:00:30]} Bd6 {[%emt 0:00:00]} 8. Qe2 {[%emt 0:01:59]} O-O {[%emt 0:00:58]} 9. a4 {[%emt 0:09:41]} e5 {[%emt 0:01:30]} 10. Nc3 {[%emt 0:00:58]} Qc7 {[%emt 0:01:39]} 11. h3 {[%emt 0:00:41]} exd4 {[%emt 0:01:49]} 12. exd4 {[%emt 0:00:21]} Re8 {[%emt 0:00:34]} 13. Qd3 {[%emt 0:05:40]} Nb6 {[%emt 0:04:21]} 14. Bb3 {[%emt 0:01:10]} Be6 {[%emt 0:04:51]} 15. Bxe6 {[%emt 0:02:49]} Rxe6 {[%emt 0:02:51]} 16. a5 {[%emt 0:00:09]} Nbd5 {[%emt 0:01:16]} 17. Ng5 {[%emt 0:02:26]} Re7 {[%emt 0:00:39]} 18. Nxd5 {[%emt 0:00:05]} cxd5 {[%emt 0:00:04]} 19. a6 {[%emt 0:00:05]} b6 {[%emt 0:01:39]} 20. Be3 {[%emt 0:00:25]} Rc8 {[%emt 0:04:21]} 21. Nf3 {[%emt 0:13:02]} Qd8 {[%emt 0:09:43]} 22. Bg5 {[%emt 0:09:09]} Rec7 {[%emt 0:00:55]} 23. Rfe1 {[%emt 0:07:53]} h6 {[%emt 0:05:44]} 24. Bxf6 {[%emt 0:05:00]} Qxf6 {[%emt 0:00:02]} 25. Qb5 {[%emt 0:00:37]} Qd8 {[%emt 0:01:53]} 26. g3 {[%emt 0:15:17]} Rc2 {[%emt 0:06:46]} 27. Re3 {[%emt 0:00:25]} Bf8 {[%emt 0:03:17]} 28. Kg2 {[%emt 0:03:35]} Qd6 {[%emt 0:06:21]} 29. Re5 {[%emt 0:01:49]} Rd8 {[%emt 0:06:29]} 30. Rae1 {[%emt 0:02:38]} Qd7 {[%emt 0:02:55]} 31. Qxd7 {[%emt 0:05:55]} Rxd7 {[%emt 0:00:11]} 32. Re8 {[%emt 0:00:07]} f6 {[%emt 0:01:13]} 33. Ra8 {[%emt 0:02:11]} Kf7 {[%emt 0:01:53]} 34. Ree8 {[%emt 0:02:43]} Bd6 {[%emt 0:01:11]} 35. g4 {[%emt 0:00:23]} Rxb2 {[%emt 0:03:36]} 36. h4 {[%emt 0:00:08]} h5 {[%emt 0:12:12]} 37. gxh5 {[%emt 0:00:07]} Bf4 {[%emt 0:03:43]} 38. h6 {[%emt 0:00:24]} Bxh6 {[%emt 0:00:25]} 39. Reb8 {[%emt 0:00:56]} Ra2 {[%emt 0:04:55]} 40. Rb7 {[%emt 0:00:21]} Ke6 {[%emt 0:00:19]} 41. Re8+ {[%emt 0:34:19]} Kd6 {[%emt 0:33:54]} 42. Ne5 {[%emt 0:00:25]} Rc7 {[%emt 0:00:32]} 43. Rd8+ {[%emt 0:00:19]} Ke7 {[%emt 0:00:10]} 44. Rc8 {[%emt 0:00:07]} fxe5 {[%emt 0:01:07]} 45. Rbxc7+ {[%emt 0:00:00]} Kf6 {[%emt 0:00:00]} 46. Rf8+ {[%emt 0:00:00]} Ke6 {[%emt 0:00:00]} 47. dxe5 {[%emt 0:00:00]} Kxe5 {[%emt 0:00:00]} 48. Rxa7 {[%emt 0:00:00]} d4 {[%emt 0:00:00]} 49. Raa8 {[%emt 0:00:00]} d3 {[%emt 0:00:00]} 50. a7 {[%emt 0:00:00]} d2 {[%emt 0:00:00]} 51. Rae8+ {[%emt 0:00:00]} Kd4 {[%emt 0:00:00]} 52. a8=Q {[%emt 0:00:00]} Rxa8 {[%emt 0:00:00]} 53. Rxa8 {[%emt 0:00:00]} b5 {[%emt 0:00:00]} 54. Rfd8+ {[%emt 0:00:00]} Kc3 {[%emt 0:00:00]} 55. Kf1 {[%emt 0:00:00]} 1-0

[Event "AUT-ch Open 2020"]
[Site "Graz"]
[Date "2020.02.16"]
[Round "3.20"]
[White "Frank, Emanuel"]
[Black "Horvath, Reka"]
[Result "1-0"]
[ECO "A62"]
[WhiteElo "2286"]
[BlackElo "2018"]
[Annotator "ChessBase"]
[PlyCount "67"]
[EventDate "2020.02.14"]
[EventType "swiss"]
[EventCountry "AUT"]
[SourceTitle "playchess.com"]
[Source "ChessBase"]
[SourceQuality "1"]
[TimeControl "40/5400+30:1800+30"]

1. d4 {[%emt 0:00:00]} Nf6 {[%emt 0:00:00]} 2. c4 {[%emt 0:00:00]} c5 {[%emt 0:00:00]} 3. d5 {[%emt 0:00:00]} e6 {[%emt 0:00:00]} 4. Nc3 {[%emt 0:00:02]} exd5 {[%emt 0:00:02]} 5. cxd5 {[%emt 0:00:04]} d6 {[%emt 0:00:10]} 6. Nf3 {[%emt 0:01:03]} g6 {[%emt 0:00:37]} 7. g3 {[%emt 0:00:21]} Bg7 {[%emt 0:00:10]} 8. Bg2 {[%emt 0:00:06]} O-O {[%emt 0:00:22]} 9. O-O {[%emt 0:00:06]} a6 {[%emt 0:00:47]} 10. a4 {[%emt 0:03:27]} Bf5 {[%emt 0:06:28]} 11. Nd2 {[%emt 0:02:13]} Re8 {[%emt 0:04:22]} 12. e4 {[%emt 0:01:01]} Bg4 {[%emt 0:01:28]} 13. Qb3 {[%emt 0:02:32]} Nbd7 {[%emt 0:16:23]} 14. h3 {[%emt 0:04:37]} Bh5 {[%emt 0:02:40]} 15. Nc4 {[%emt 0:09:26]} b5 {[%emt 0:00:54]} 16. axb5 {[%emt 0:01:17]} axb5 {[%emt 0:00:07]} 17. Rxa8 {[%emt 0:00:08]} Qxa8 {[%emt 0:00:02]} 18. Nxd6 {[%emt 0:01:38]} b4 {[%emt 0:00:28]} 19. Nxe8 {[%emt 0:02:03]} Qxe8 {[%emt 0:00:27]} 20. Nb1 {[%emt 0:01:59]} Be2 {[%emt 0:01:36]} 21. Re1 {[%emt 0:00:19]} c4 {[%emt 0:00:20]} 22. Qxb4 {[%emt 0:01:03]} Bd3 {[%emt 0:00:03]} 23. Nd2 {[%emt 0:01:09]} Nxd5 {[%emt 0:01:02]} 24. Qa5 {[%emt 0:02:22]} N5b6 {[%emt 0:02:02]} 25. Bf1 {[%emt 0:01:40]} Qe6 {[%emt 0:01:24]} 26. Bxd3 {[%emt 0:04:19]} cxd3 {[%emt 0:00:09]} 27. Kg2 {[%emt 0:00:49]} f5 {[%emt 0:02:38]} 28. Qb5 {[%emt 0:01:32]} Ne5 {[%emt 0:11:47]} 29. exf5 {[%emt 0:00:24]} Qd6 {[%emt 0:00:54]} 30. Qe8+ {[%emt 0:00:36]} Qf8 {[%emt 0:00:09]} 31. Qe6+ {[%emt 0:00:16]} Kh8 {[%emt 0:00:54]} 32. Rxe5 {[%emt 0:00:22]} Bxe5 {[%emt 0:01:03]} 33. Qxe5+ {[%emt 0:00:01]} Qg7 {[%emt 0:00:27]} 34. Qb8+ {[%emt 0:00:01]} 1-0

[Event "AUT-ch Open 2020"]
[Site "Graz"]
[Date "2020.02.16"]
[Round "3.21"]
[White "Gavrilescu, David"]
[Black "Molnar, Bela"]
[Result "1-0"]
[ECO "B48"]
[WhiteElo "2455"]
[BlackElo "2312"]
[Annotator "ChessBase"]
[PlyCount "65"]
[EventDate "2020.02.14"]
[EventType "swiss"]
[EventCountry "AUT"]
[SourceTitle "playchess.com"]
[Source "ChessBase"]
[SourceQuality "1"]
[TimeControl "40/5400+30:1800+30"]

1. e4 {[%emt 0:00:00]} c5 {[%emt 0:02:09]} 2. Nf3 {[%emt 0:00:05]} e6 {[%emt 0:02:31]} 3. d4 {[%emt 0:00:31]} cxd4 {[%emt 0:00:09]} 4. Nxd4 {[%emt 0:00:08]} Nc6 {[%emt 0:00:16]} 5. Nc3 {[%emt 0:01:04]} Qc7 {[%emt 0:05:35]} 6. Be3 {[%emt 0:00:58]} a6 {[%emt 0:00:45]} 7. a3 {[%emt 0:00:24]} Nf6 {[%emt 0:00:11]} 8. f4 {[%emt 0:00:29]} d6 {[%emt 0:00:55]} 9. Qf3 {[%emt 0:00:19]} Bd7 {[%emt 0:00:48]} 10. O-O-O {[%emt 0:01:20]} Rc8 {[%emt 0:01:18]} 11. g4 {[%emt 0:14:36]} Nxd4 {[%emt 0:11:29]} 12. Rxd4 {[%emt 0:02:50]} d5 {[%emt 0:00:47]} 13. exd5 {[%emt 0:03:31]} b5 {[%emt 0:02:47]} 14. Bd2 {[%emt 0:09:46]} Bc5 {[%emt 0:02:12]} 15. Re4 {[%emt 0:13:14]} O-O {[%emt 0:15:16]} 16. Bd3 {[%emt 0:07:14]} exd5 {[%emt 0:05:36]} 17. Ree1 {[%emt 0:03:22]} b4 {[%emt 0:22:45]} 18. axb4 {[%emt 0:02:33]} Bxg4 {[%emt 0:02:55]} 19. Qg3 {[%emt 0:04:48]} Bxb4 {[%emt 0:00:20]} 20. Rhg1 {[%emt 0:01:13]} d4 {[%emt 0:06:09]} 21. Nb1 {[%emt 0:03:02]} Bxd2+ {[%emt 0:01:12]} 22. Nxd2 {[%emt 0:00:21]} g6 {[%emt 0:03:53]} 23. Qh4 {[%emt 0:01:25]} Nd5 {[%emt 0:03:28]} 24. Qxg4 {[%emt 0:02:02]} Ne3 {[%emt 0:02:44]} 25. Rxe3 {[%emt 0:00:52]} dxe3 {[%emt 0:00:13]} 26. Nc4 {[%emt 0:00:07]} Rfe8 {[%emt 0:01:09]} 27. Re1 {[%emt 0:04:26]} Qc5 {[%emt 0:00:24]} 28. f5 {[%emt 0:00:31]} Qb4 {[%emt 0:00:44]} 29. Rxe3 {[%emt 0:01:28]} Red8 {[%emt 0:00:33]} 30. fxg6 {[%emt 0:01:21]} hxg6 {[%emt 0:00:11]} 31. Bxg6 {[%emt 0:03:55]} Rxc4 {[%emt 0:01:15]} 32. Bxf7+ {[%emt 0:00:21]} Kxf7 {[%emt 0:00:14]} 33. Qf5+ {[%emt 0:00:05]} 1-0

[Event "AUT-ch Open 2020"]
[Site "Graz"]
[Date "2020.02.16"]
[Round "3.21"]
[White "Papakonstantinou, Dimitrios"]
[Black "Mayrhuber, Nikola"]
[Result "1-0"]
[ECO "E46"]
[WhiteElo "2275"]
[BlackElo "2017"]
[Annotator "ChessBase"]
[PlyCount "73"]
[EventDate "2020.02.14"]
[EventType "swiss"]
[EventCountry "AUT"]
[SourceTitle "playchess.com"]
[Source "ChessBase"]
[SourceQuality "1"]
[TimeControl "40/5400+30:1800+30"]

1. d4 {[%emt 0:06:20]} e6 {[%emt 0:00:00]} 2. c4 {[%emt 0:00:14]} Nf6 {[%emt 0:00:00]} 3. Nc3 {[%emt 0:00:07]} Bb4 {[%emt 0:00:14]} 4. e3 {[%emt 0:01:59]} O-O {[%emt 0:02:11]} 5. Nge2 {[%emt 0:00:37]} Re8 {[%emt 0:01:08]} 6. a3 {[%emt 0:00:50]} Bf8 {[%emt 0:00:21]} 7. Ng3 {[%emt 0:08:16]} d5 {[%emt 0:05:21]} 8. Qc2 {[%emt 0:06:52]} b6 {[%emt 0:02:26]} 9. Be2 {[%emt 0:04:08]} c5 {[%emt 0:15:18]} 10. dxc5 {[%emt 0:01:03]} bxc5 {[%emt 0:00:40]} 11. O-O {[%emt 0:01:48]} Nbd7 {[%emt 0:08:39]} 12. Rd1 {[%emt 0:03:22]} Bb7 {[%emt 0:08:52]} 13. cxd5 {[%emt 0:04:25]} exd5 {[%emt 0:00:22]} 14. Bf3 {[%emt 0:00:20]} Re5 {[%emt 0:04:49]} 15. b3 {[%emt 0:02:12]} Qe8 {[%emt 0:12:03]} 16. Bb2 {[%emt 0:01:23]} Rg5 {[%emt 0:04:44]} 17. h4 {[%emt 0:10:00]} Rxg3 {[%emt 0:00:50]} 18. fxg3 {[%emt 0:00:02]} Qxe3+ {[%emt 0:00:10]} 19. Kh1 {[%emt 0:02:44]} Qe6 {[%emt 0:12:03]} 20. Re1 {[%emt 0:02:58]} Qd6 {[%emt 0:00:21]} 21. Qf2 {[%emt 0:00:53]} Qb6 {[%emt 0:03:08]} 22. Rab1 {[%emt 0:07:07]} a5 {[%emt 0:01:25]} 23. Bc1 {[%emt 0:05:58]} d4 {[%emt 0:01:49]} 24. Na4 {[%emt 0:00:48]} Qb5 {[%emt 0:00:44]} 25. Qe2 {[%emt 0:05:01]} d3 {[%emt 0:04:26]} 26. Nc3 {[%emt 0:01:17]} Bxf3 {[%emt 0:01:38]} 27. Qxf3 {[%emt 0:02:18]} Qa6 {[%emt 0:00:03]} 28. Bf4 {[%emt 0:01:06]} c4 {[%emt 0:00:43]} 29. bxc4 {[%emt 0:00:50]} Nc5 {[%emt 0:02:06]} 30. Nd5 {[%emt 0:02:21]} Rd8 {[%emt 0:03:01]} 31. Bg5 {[%emt 0:03:42]} Qxc4 {[%emt 0:01:48]} 32. Nxf6+ {[%emt 0:00:05]} gxf6 {[%emt 0:00:06]} 33. Bxf6 {[%emt 0:00:15]} Rc8 {[%emt 0:02:28]} 34. Qf5 {[%emt 0:02:04]} Ne6 {[%emt 0:00:45]} 35. Rbd1 {[%emt 0:02:38]} Bxa3 {[%emt 0:02:00]} 36. Re4 {[%emt 0:01:29]} Rc5 {[%emt 0:00:30]} 37. Qg4+ {[%emt 0:00:18]} 1-0

[Event "AUT-ch Open 2020"]
[Site "Graz"]
[Date "2020.02.16"]
[Round "3.22"]
[White "Horvath, Dominik"]
[Black "Stukan, Martin"]
[Result "0-1"]
[ECO "E94"]
[WhiteElo "2450"]
[BlackElo "2292"]
[Annotator "ChessBase"]
[PlyCount "86"]
[EventDate "2020.02.14"]
[EventType "swiss"]
[EventCountry "AUT"]
[SourceTitle "playchess.com"]
[Source "ChessBase"]
[SourceQuality "1"]
[TimeControl "40/5400+30:1800+30"]

1. Nf3 {[%emt 0:00:00]} Nf6 {[%emt 0:00:00]} 2. c4 {[%emt 0:00:00]} g6 {[%emt 0:00:00]} 3. Nc3 {[%emt 0:00:00]} Bg7 {[%emt 0:00:00]} 4. e4 {[%emt 0:00:11]} d6 {[%emt 0:00:00]} 5. d4 {[%emt 0:00:05]} O-O {[%emt 0:00:00]} 6. Be2 {[%emt 0:00:08]} e5 {[%emt 0:00:00]} 7. O-O {[%emt 0:00:08]} c6 {[%emt 0:00:00]} 8. d5 {[%emt 0:07:03]} Na6 {[%emt 0:00:01]} 9. Be3 {[%emt 0:01:03]} Ng4 {[%emt 0:00:16]} 10. Bg5 {[%emt 0:00:09]} f6 {[%emt 0:00:03]} 11. Bh4 {[%emt 0:01:15]} c5 {[%emt 0:00:05]} 12. Ne1 {[%emt 0:03:44]} Nh6 {[%emt 0:00:23]} 13. f3 {[%emt 0:03:20]} Nf7 {[%emt 0:02:40]} 14. a3 {[%emt 0:00:22]} Bd7 {[%emt 0:00:26]} 15. Nd3 {[%emt 0:00:59]} Bh6 {[%emt 0:00:42]} 16. Bf2 {[%emt 0:00:38]} f5 {[%emt 0:02:05]} 17. b4 {[%emt 0:00:42]} b6 {[%emt 0:00:17]} 18. Rb1 {[%emt 0:03:46]} Rb8 {[%emt 0:13:37]} 19. Qe1 {[%emt 0:08:24]} Qf6 {[%emt 0:09:28]} 20. Bd1 {[%emt 0:02:19]} Ng5 {[%emt 0:19:38]} 21. Bh4 {[%emt 0:09:46]} Qg7 {[%emt 0:04:14]} 22. bxc5 {[%emt 0:15:09]} Nxc5 {[%emt 0:06:22]} 23. Nxc5 {[%emt 0:00:05]} bxc5 {[%emt 0:00:03]} 24. Bc2 {[%emt 0:03:13]} Nf7 {[%emt 0:04:30]} 25. Bf2 {[%emt 0:01:42]} Bg5 {[%emt 0:05:44]} 26. Ne2 {[%emt 0:02:43]} Qh6 {[%emt 0:19:29]} 27. Qa5 {[%emt 0:00:38]} Rxb1 {[%emt 0:02:20]} 28. Bxb1 {[%emt 0:03:48]} fxe4 {[%emt 0:08:16]} 29. Bxe4 {[%emt 0:01:09]} Rb8 {[%emt 0:01:08]} 30. Qxa7 {[%emt 0:05:24]} Rb2 {[%emt 0:00:03]} 31. Ng3 {[%emt 0:13:59]} Be3 {[%emt 0:01:03]} 32. Nh1 {[%emt 0:02:50]} Bf5 {[%emt 0:02:11]} 33. Bxf5 {[%emt 0:00:06]} gxf5 {[%emt 0:00:03]} 34. Qd7 {[%emt 0:00:54]} Qg5 {[%emt 0:00:52]} 35. g3 {[%emt 0:02:58]} Bd4 {[%emt 0:00:38]} 36. h4 {[%emt 0:05:04]} Bxf2+ {[%emt 0:00:28]} 37. Rxf2 {[%emt 0:00:11]} Qc1+ {[%emt 0:00:11]} 38. Rf1 {[%emt 0:00:15]} Qe3+ {[%emt 0:00:09]} 39. Nf2 {[%emt 0:01:19]} Qxf3 {[%emt 0:00:13]} 40. a4 {[%emt 0:00:07]} Qxg3+ {[%emt 0:00:17]} 41. Kh1 {[%emt 0:30:04]} Rxf2 {[%emt 0:30:29]} 42. Rxf2 {[%emt 0:00:05]} Qxf2 {[%emt 0:00:04]} 43. a5 {[%emt 0:00:02]} Qe1+ {[%emt 0:00:47]} 0-1